bitfinex-derivatives/quotes_SOLF0:USTF0_20241231
["timestamp","ask_amount","ask_price","bid_price","bid_amount"]
[1735642009861,3.0,194.88,194.83,8.13061556]
[1735642010167,3.0,194.88,194.87,2.5697]
[1735642012564,11.13061556,194.93,194.9,2.5692]
[1735642013069,8.13061556,194.95,194.92,2.5691]
[1735642013370,3.0,194.94,194.89,8.13061556]
[1735642014070,3.0,194.94,194.91,2.5691]
[1735642015172,8.13061556,194.96,194.92,2.5691]
[1735642015368,2.98,194.95,194.92,2.5691]
[1735642015873,8.13061556,194.96,194.93,2.5688]
[1735642016074,11.11061556,194.96,194.93,2.5688]
[1735642016574,11.11061556,194.96,194.91,2.5691]
[1735642017676,8.13061556,194.92,194.88,2.5696]
[1735642018072,2.98,194.91,194.88,2.5696]
[1735642019277,2.98,194.91,194.89,2.5695]
[1735642021077,2.98,194.91,194.85,8.13061556]
[1735642021277,8.13061556,194.9,194.83,8.13061556]
[1735642021472,8.13061556,194.9,194.83,2.5702]
[1735642021678,8.13061556,194.88,194.83,2.5702]
[1735642022080,8.13061556,194.86,194.82,2.5704]
[1735642022276,11.11061556,194.86,194.8,8.13061556]
[1735642023179,11.11061556,194.86,194.78,8.13061556]
[1735642023379,11.11061556,194.86,194.81,2.5704]
[1735642023579,11.11061556,194.86,194.78,8.13061556]
[1735642024172,11.11061556,194.86,194.76,12.67110528]
[1735642024378,2.98,194.86,194.76,12.67110528]
[1735642025383,2.98,194.86,194.79,2.5708]
[1735642025577,2.98,194.86,194.76,12.67110528]
[1735642026082,2.98,194.86,194.81,2.5704]
[1735642026272,2.98,194.86,194.76,12.67110528]
[1735642027074,2.98,194.86,194.77,12.67110528]
[1735642027676,2.98,194.86,194.79,2.5707]
[1735642027877,2.98,194.86,194.77,12.67110528]
[1735642028280,2.98,194.86,194.8,2.5705]
[1735642028580,2.98,194.86,194.77,12.67110528]
[1735642029579,2.98,194.86,194.83,2.5702]
[1735642029774,2.98,194.86,194.77,12.67110528]
[1735642030385,2.98,194.86,194.79,2.5707]
[1735642030584,2.98,194.86,194.77,12.67110528]
[1735642031087,2.98,194.86,194.81,2.5704]
[1735642031886,2.98,194.86,194.77,12.67110528]
[1735642032785,12.67110528,194.93,194.8,12.67110528]
[1735642032989,2.98,194.92,194.8,12.67110528]
[1735642033385,2.98,194.92,194.89,2.5695]
[1735642034186,2.98,194.91,194.88,2.5696]
[1735642036389,2.98,194.91,194.85,2.57]
[1735642037583,2.98,194.91,194.86,2.5698]
[1735642038189,2.98,194.91,194.86,2.5699]
[1735642038788,2.98,194.91,194.85,2.57]
[1735642038989,2.98,194.91,194.8,12.67110528]
[1735642039480,12.67110528,194.9,194.83,2.5702]
[1735642039677,12.67110528,194.9,194.77,12.67110528]
[1735642039881,12.67110528,194.9,194.78,3.91414816]
[1735642040078,12.67110528,194.9,194.77,12.67110528]
[1735642040279,12.67110528,194.9,194.78,3.91417111]
[1735642040478,12.67110528,194.9,194.84,2.5701]
[1735642042085,12.67110528,194.9,194.85,2.57]
[1735642043287,12.67110528,194.9,194.8,2.5705]
[1735642043486,12.67110528,194.9,194.77,12.67110528]
[1735642043692,12.67110528,194.9,194.78,3.92087487]
[1735642043894,12.67110528,194.9,194.77,12.67110528]
[1735642044595,12.67110528,194.9,194.81,2.5704]
[1735642045195,12.67110528,194.87,194.8,2.5706]
[1735642045395,2.96,194.86,194.8,2.5706]
[1735642046199,8.11178108,194.84,194.8,2.5706]
[1735642047901,8.11178108,194.82,194.79,2.5708]
[1735642048097,2.96,194.81,194.79,2.5708]
[1735642048301,2.96,194.81,194.76,8.11178108]
[1735642049396,2.96,194.81,194.78,2.5708]
[1735642049798,2.96,194.81,194.76,8.11178108]
[1735642049999,2.96,194.89,194.87,2.5697]
[1735642050199,2.96,194.89,194.83,8.11178108]
[1735642050593,2.96,194.89,194.86,2.5698]
[1735642050791,2.96,194.89,194.83,8.11178108]
[1735642052995,2.96,194.9,194.85,8.11178108]
[1735642053901,2.96,194.9,194.89,2.5695]
[1735642055000,2.96,194.91,194.9,2.5693]
[1735642055596,8.11178108,194.94,194.91,2.5692]
[1735642055796,2.96,194.93,194.91,2.5692]
[1735642056596,2.96,194.93,194.9,2.5693]
[1735642056801,8.11178108,194.92,194.85,8.11178108]
[1735642057600,8.11178108,194.92,194.89,2.5695]
[1735642058203,8.11178108,194.92,194.9,2.5693]
[1735642060196,2.96,194.91,194.9,2.5693]
[1735642062804,2.9912,195.0,194.89,8.11178108]
[1735642063103,11.07178108,194.99,194.91,8.11178108]
[1735642063495,2.96,194.98,194.91,8.11178108]
[1735642063696,2.96,194.98,194.96,2.5685]
[1735642064307,8.11178108,194.97,194.86,1.5003]
[1735642064603,8.11178108,194.97,194.9,8.11178108]
[1735642064806,8.11178108,194.97,194.94,2.5687]
[1735642067206,2.96,194.98,194.94,2.5687]
[1735642067406,8.11178108,194.97,194.94,2.5688]
[1735642067904,8.11178108,194.97,194.86,1.5003]
[1735642068207,8.11178108,194.97,194.89,8.11178108]
[1735642068404,8.11178108,194.97,194.86,1.5003]
[1735642068599,8.11178108,194.97,194.89,8.11178108]
[1735642069296,8.11178108,194.95,194.91,2.5691]
[1735642069697,8.11178108,194.93,194.85,8.11178108]
[1735642069903,8.11178108,194.91,194.88,2.5696]
[1735642070104,2.96,194.9,194.88,2.5696]
[1735642071610,2.96,194.9,194.89,2.5695]
[1735642071813,2.96,194.94,194.88,8.11178108]
[1735642072012,2.96,194.94,194.9,8.11178108]
[1735642072604,2.96,194.94,194.93,2.5689]
[1735642072807,2.96,194.98,194.92,8.11178108]
[1735642073309,2.96,194.98,194.97,2.5684]
[1735642073609,2.96,194.98,194.92,8.11178108]
[1735642073914,2.96,194.98,194.96,2.5685]
[1735642074613,2.96,194.98,194.92,8.11178108]
[1735642074614,2.96,194.98,194.97,2.5684]
[1735642075312,8.11178108,194.99,194.97,2.5684]
[1735642075507,2.98,194.98,194.97,2.5684]
[1735642075912,8.11178108,194.99,194.97,2.5684]
[1735642076114,11.09178108,194.99,194.97,2.5684]
[1735642077614,11.09178108,194.99,194.94,2.5688]
[1735642077924,8.11178108,194.97,194.92,8.11178108]
[1735642079012,8.11178108,194.97,194.86,3.91124883]
[1735642079317,8.11178108,194.97,194.9,8.11178108]
[1735642079714,8.11178108,194.97,194.95,2.5687]
[1735642079913,8.11178108,194.97,194.9,8.11178108]
[1735642081016,8.11178108,194.97,194.96,2.5686]
[1735642081713,11.09178108,194.99,194.97,2.5684]
[1735642082406,143.24784868,195.14,194.91,2.98]
[1735642082612,8.11178108,195.02,194.95,8.11178108]
[1735642083013,8.11178108,195.02,194.99,2.5681]
[1735642083317,8.11178108,195.02,194.95,8.11178108]
[1735642083621,8.11178108,195.02,194.97,2.5684]
[1735642083918,8.11178108,195.02,194.95,8.11178108]
[1735642084308,8.11178108,195.02,194.99,2.5681]
[1735642085019,8.11178108,195.0,194.9,1.4852]
[1735642085316,8.11178108,194.94,194.87,8.11178108]
[1735642085506,11.09178108,194.94,194.87,8.11178108]
[1735642085711,2.98,194.94,194.89,8.11178108]
[1735642085907,2.98,194.94,194.93,2.569]
[1735642088018,2.98,194.94,194.91,2.5691]
[1735642088317,11.09178108,194.94,194.87,8.11178108]
[1735642088518,11.09178108,194.94,194.89,2.5695]
[1735642088912,11.09178108,194.94,194.86,8.11178108]
[1735642089313,8.11178108,194.92,194.87,2.5697]
[1735642090718,8.11178108,194.92,194.88,2.5696]
[1735642091317,2.98,194.94,194.86,8.11178108]
[1735642091517,11.09178108,194.94,194.86,8.11178108]
[1735642091821,8.11178108,194.96,194.88,8.11178108]
[1735642092015,2.98,194.95,194.94,2.5687]
[1735642093018,11.09178108,194.95,194.88,8.11178108]
[1735642093812,11.09178108,194.95,194.9,2.5693]
[1735642095419,8.11178108,194.93,194.89,2.5694]
[1735642095614,8.11178108,194.93,194.86,8.11178108]
[1735642096719,8.11178108,194.93,194.9,2.5692]
[1735642097220,8.11178108,194.93,194.91,2.5692]
[1735642097821,2.98,194.92,194.91,2.5692]
[1735642099522,2.98,194.92,194.9,2.5693]
[1735642099729,2.98,194.92,194.86,8.11178108]
[1735642100223,2.98,194.92,194.87,2.5696]
[1735642100524,8.11178108,194.91,194.84,8.11178108]
[1735642100722,2.98,194.9,194.86,8.11178108]
[1735642101222,8.11178108,194.94,194.86,8.11178108]
[1735642101429,2.98,194.93,194.88,8.11178108]
[1735642101625,2.98,194.93,194.82,1.4577]
[1735642101821,2.98,194.93,194.89,8.11178108]
[1735642102723,2.98,194.93,194.83,2.98]
[1735642102923,2.98,194.93,194.88,8.11178108]
[1735642103527,2.98,194.93,194.92,2.5691]
[1735642105129,4.5722,195.02,194.9,8.11178108]
[1735642105428,8.11178108,194.94,194.87,8.11178108]
[1735642105731,3.0,194.93,194.87,8.11178108]
[1735642105930,3.0,194.93,194.9,2.5693]
[1735642106532,3.0,194.93,194.91,2.5692]
[1735642109829,3.0,194.93,194.9,2.5693]
[1735642110034,3.0,194.93,194.85,8.11178108]
[1735642110431,3.0,194.93,194.86,3.92185925]
[1735642110631,3.0,194.93,194.85,8.11178108]
[1735642110934,3.0,194.93,194.87,8.11178108]
[1735642111531,3.0,194.93,194.92,2.5691]
[1735642111831,3.0,194.93,194.86,8.11178108]
[1735642112036,3.0,194.93,194.91,2.5691]
[1735642112531,8.11178108,194.92,194.82,1.4577]
[1735642112837,8.11178108,194.92,194.84,8.11178108]
[1735642113032,8.11178108,194.92,194.85,3.92274711]
[1735642113233,8.11178108,194.92,194.84,8.11178108]
[1735642113432,8.11178108,194.92,194.85,3.92202975]
[1735642113633,8.11178108,194.92,194.84,8.11178108]
[1735642113832,8.11178108,194.92,194.85,3.92156099]
[1735642114032,8.11178108,194.92,194.84,8.11178108]
[1735642114337,8.11178108,194.92,194.85,3.92143061]
[1735642114533,8.11178108,194.92,194.89,2.5694]
[1735642115330,8.11178108,194.92,194.88,2.5696]
[1735642116534,3.0,194.93,194.84,8.11178108]
[1735642116735,8.11178108,194.92,194.89,2.5694]
[1735642117832,8.11178108,194.9,194.8,1.493]
[1735642118033,3.0,194.93,194.81,3.92299654]
[1735642118034,8.11178108,194.88,194.81,3.92299654]
[1735642118234,8.11178108,194.84,194.78,36.2693377]
[1735642118431,8.11178108,194.82,194.79,2.5707]
[1735642118640,11.11178108,194.82,194.79,2.5707]
[1735642119034,8.11178108,194.8,194.77,2.571]
[1735642119236,8.11178108,194.78,194.75,28.15755662]
[1735642119439,3.0,194.77,194.75,28.15755662]
[1735642119842,3.0,194.77,194.74,2.5713]
[1735642120040,3.0,194.77,194.72,8.11178108]
[1735642120241,3.0,194.77,194.75,2.5713]
[1735642120741,3.0,194.77,194.72,8.11178108]
[1735642120941,3.0,194.77,194.76,2.5712]
[1735642122850,3.0,194.77,194.76,10.68298108]
[1735642123048,53.4,194.91,194.82,2.5703]
[1735642123049,8.11178108,194.84,194.82,2.5703]
[1735642123249,3.0,194.83,194.82,2.5703]
[1735642123543,3.0,194.83,194.78,8.11178108]
[1735642123746,3.0,194.83,194.82,2.5704]
[1735642124051,3.0,194.83,194.82,10.68218108]
[1735642124245,3.0,194.87,194.82,8.11178108]
[1735642124944,11.11178108,194.87,194.82,8.11178108]
[1735642125151,11.11178108,194.87,194.84,2.57]
[1735642125649,3.0,194.87,194.82,8.11178108]
[1735642125948,3.0,194.89,194.84,8.11178108]
[1735642126345,3.0,194.89,194.82,12.66358641]
[1735642126741,12.66358641,194.97,194.82,12.66358641]
[1735642127049,3.0,194.96,194.82,12.66358641]
[1735642127343,12.66358641,194.94,194.82,12.66358641]
[1735642127850,12.66358641,194.94,194.79,12.66358641]
[1735642128746,12.66358641,194.94,194.85,2.5699]
[1735642129649,12.66358641,194.94,194.79,12.66358641]
[1735642129650,12.66358641,194.94,194.86,2.5699]
[1735642129850,12.66358641,194.94,194.8,3.9069168]
[1735642130050,12.66358641,194.94,194.79,12.66358641]
[1735642130242,12.66358641,194.94,194.87,2.5696]
[1735642130449,12.66358641,194.94,194.81,16.5712873]
[1735642130651,12.66358641,194.94,194.81,12.66358641]
[1735642130950,12.66358641,194.94,194.87,2.5696]
[1735642132653,12.66358641,194.94,194.88,2.5696]
[1735642133254,12.66358641,194.94,194.81,12.66358641]
[1735642133553,12.66358641,194.91,194.78,17.23358641]
[1735642133755,3.0,194.9,194.78,17.23358641]
[1735642135050,3.0,194.9,194.82,2.5703]
[1735642135254,3.0,194.9,194.76,1.4732]
[1735642135255,12.66358641,194.88,194.76,1.4732]
[1735642135445,12.66358641,194.82,194.72,21.23807556]
[1735642135647,3.0,194.81,194.76,2.5711]
[1735642137753,3.0,194.81,194.72,14.19868641]
[1735642138453,3.0,194.81,194.74,2.5714]
[1735642138656,3.0,194.81,194.72,14.19868641]
[1735642138860,3.0,194.81,194.73,3.9145968]
[1735642139159,3.0,194.81,194.79,2.5707]
[1735642140961,3.0,194.81,194.8,2.5707]
[1735642143463,3.0,194.81,194.77,2.5709]
[1735642143762,3.0,194.81,194.72,14.19868641]
[1735642144761,3.0,194.81,194.78,2.5708]
[1735642145962,3.0,194.81,194.79,2.5708]
[1735642146159,3.0,194.81,194.72,14.19868641]
[1735642147461,3.0,194.83,194.75,12.66358641]
[1735642147666,1.5739,194.87,194.75,12.66358641]
[1735642147861,3.0,194.86,194.75,12.66358641]
[1735642148260,1.5739,194.87,194.75,12.66358641]
[1735642148468,3.0,194.86,194.82,2.5703]
[1735642148665,3.0,194.86,194.75,12.66358641]
[1735642148866,3.0,194.86,194.8,2.5706]
[1735642149265,3.0,194.86,194.73,3.0]
[1735642149468,3.0,194.86,194.74,3.91196142]
[1735642149764,15.66358641,194.86,194.73,3.0]
[1735642150165,15.66358641,194.86,194.72,14.19868641]
[1735642150367,15.66358641,194.86,194.77,2.5709]
[1735642150567,15.66358641,194.86,194.72,14.19868641]
[1735642151267,12.66358641,194.8,194.72,1.5351]
[1735642151468,3.0,194.79,194.72,1.5351]
[1735642152667,3.0,194.79,194.76,2.5711]
[1735642153066,3.0,194.79,194.72,1.5351]
[1735642153867,3.0,194.79,194.74,2.5714]
[1735642154067,3.0,194.79,194.72,1.5351]
[1735642154870,3.0,194.79,194.77,2.571]
[1735642155974,3.0,194.79,194.78,2.5709]
[1735642156873,3.0,194.79,194.72,1.5351]
[1735642157170,3.0,194.79,194.66,53.45702862]
[1735642157374,3.0,194.79,194.67,3.91720401]
[1735642157575,3.0,194.79,194.66,51.47872862]
[1735642158071,12.66358641,194.77,194.72,2.5717]
[1735642158375,12.66358641,194.77,194.66,51.47872862]
[1735642158775,12.66358641,194.77,194.66,44.43933947]
[1735642159377,12.66358641,194.77,194.7,2.5719]
[1735642159769,12.66358641,194.77,194.66,44.43933947]
[1735642159975,12.66358641,194.77,194.67,3.91725239]
[1735642160279,12.66358641,194.77,194.68,3.9179227]
[1735642160779,12.66358641,194.77,194.73,2.5715]
[1735642161378,12.66358641,194.77,194.7,2.572]
[1735642161676,12.66358641,194.77,194.66,44.43933947]
[1735642162475,12.66358641,194.77,194.72,2.5717]
[1735642166873,12.66358641,194.74,194.68,2.5722]
[1735642167076,3.0,194.73,194.64,1.4936]
[1735642167672,3.0,194.73,194.7,2.572]
[1735642169075,3.0,194.73,194.61,23.03621562]
[1735642169277,3.0,194.73,194.71,2.5718]
[1735642170079,3.0,194.73,194.72,2.5717]
[1735642171177,12.66358641,194.74,194.72,2.5717]
[1735642171482,3.0,194.73,194.72,2.5717]
[1735642172982,12.66358641,194.74,194.72,2.5717]
[1735642173184,3.0,194.73,194.72,2.5717]
[1735642174281,11.11991562,194.73,194.72,2.5717]
[1735642175083,3.0,194.73,194.72,2.5717]
[1735642175480,11.11991562,194.73,194.72,2.5717]
[1735642177784,11.11991562,194.73,194.62,5.1461]
[1735642177986,8.11991562,194.7,194.68,2.5722]
[1735642178480,8.11991562,194.7,194.69,2.5721]
[1735642180984,3.0,194.73,194.67,8.11991562]
[1735642181180,8.11991562,194.75,194.67,8.11991562]
[1735642181486,3.0,194.73,194.72,2.5717]
[1735642182279,8.11991562,194.75,194.72,2.5717]
[1735642182475,8.11991562,194.75,194.73,2.5716]
[1735642182882,3.0,194.74,194.73,2.5716]
[1735642183284,8.11991562,194.75,194.73,2.5716]
[1735642183486,3.0,194.74,194.73,2.5716]
[1735642183886,8.11991562,194.75,194.73,2.5716]
[1735642184080,3.0,194.74,194.73,2.5716]
[1735642184784,8.11991562,194.75,194.73,2.5716]
[1735642185086,3.0,194.74,194.73,2.5716]
[1735642185580,8.11991562,194.75,194.73,2.5716]
[1735642185885,3.0,194.74,194.73,2.5716]
[1735642188687,3.0,194.74,194.68,8.11991562]
[1735642188886,8.11991562,194.73,194.72,2.5716]
[1735642189289,8.11991562,194.73,194.68,2.5722]
[1735642189588,8.11991562,194.71,194.66,8.11991562]
[1735642189986,8.11991562,194.71,194.7,2.5719]
[1735642190190,8.11991562,194.73,194.66,8.11991562]
[1735642191486,8.11991562,194.73,194.72,2.5717]
[1735642191881,34.80639269,194.85,194.65,1.4521]
[1735642192083,57.16178465,194.86,194.77,8.11991562]
[1735642192084,60.16178465,194.86,194.77,8.11991562]
[1735642192287,8.11991562,194.84,194.77,8.11991562]
[1735642192587,8.11991562,194.84,194.82,2.5704]
[1735642193493,8.11991562,194.84,194.8,2.5705]
[1735642193793,8.11991562,194.82,194.75,8.11991562]
[1735642193989,8.11991562,194.82,194.72,3.0]
[1735642194194,8.11991562,194.82,194.74,8.11991562]
[1735642194588,11.11991562,194.82,194.74,8.11991562]
[1735642195489,11.11991562,194.82,194.78,2.5708]
[1735642196491,8.11991562,194.8,194.78,2.5708]
[1735642205800,8.11991562,194.8,194.72,11.11991562]
[1735642206800,8.11991562,194.8,194.73,3.92688961]
[1735642207003,8.11991562,194.8,194.72,11.11991562]
[1735642207299,8.11991562,194.8,194.73,3.92748275]
[1735642207497,8.11991562,194.8,194.72,3.0]
[1735642207698,8.11991562,194.8,194.72,11.11991562]
[1735642209102,8.11991562,194.8,194.79,2.5708]
[1735642210400,8.11991562,194.8,194.78,2.5709]
[1735642210602,8.11991562,194.79,194.78,2.5709]
[1735642215605,8.11991562,194.79,194.76,2.5711]
[1735642215809,8.11991562,194.77,194.69,42.29479283]
[1735642216009,8.11991562,194.74,194.7,3.92897341]
[1735642216200,8.11991562,194.74,194.69,42.29479283]
[1735642216398,8.11991562,194.74,194.7,3.92992166]
[1735642216608,8.11991562,194.74,194.69,42.29479283]
[1735642216808,8.11991562,194.74,194.7,3.93011043]
[1735642217009,8.11991562,194.74,194.69,42.29479283]
[1735642217305,8.11991562,194.74,194.7,3.93029084]
[1735642217509,8.11991562,194.74,194.73,2.5716]
[1735642221003,8.11991562,194.76,194.7,8.11991562]
[1735642221214,8.11991562,194.78,194.72,8.11991562]
[1735642221808,8.11991562,194.78,194.73,3.92756097]
[1735642222007,8.11991562,194.78,194.72,8.11991562]
[1735642222208,8.11991562,194.78,194.73,3.92779238]
[1735642222404,8.11991562,194.78,194.77,2.5711]
[1735642222810,8.11991562,194.78,194.7,8.11991562]
[1735642223009,8.11991562,194.76,194.71,3.92835735]
[1735642223305,8.11991562,194.76,194.75,2.5712]
[1735642224308,8.11991562,194.76,194.69,42.29479283]
[1735642224515,8.11991562,194.76,194.74,2.5714]
[1735642225418,8.11991562,194.76,194.75,2.5713]
[1735642231417,8.11991562,194.76,194.69,50.41470845]
[1735642231709,8.11991562,194.74,194.7,3.93867806]
[1735642231918,8.11991562,194.72,194.71,2.5719]
[1735642233815,8.11991562,194.74,194.71,3.93911266]
[1735642234018,8.11991562,194.74,194.69,42.29479283]
[1735642234318,8.11991562,194.74,194.72,2.5716]
[1735642235109,8.11991562,194.74,194.69,42.29479283]
[1735642235110,8.11991562,194.74,194.73,2.5716]
[1735642236816,8.11991562,194.74,194.72,2.5717]
[1735642237222,8.11991562,194.74,194.69,42.29479283]
[1735642237521,8.11991562,194.74,194.7,3.94064977]
[1735642237723,8.11991562,194.74,194.69,42.29479283]
[1735642238021,8.11991562,194.77,194.7,3.94025922]
[1735642238222,4.6318,194.82,194.71,12.06017484]
[1735642238418,8.11991562,194.79,194.73,8.11991562]
[1735642238914,8.11991562,194.79,194.78,2.5709]
[1735642239315,7.5718,194.82,194.75,8.11991562]
[1735642239513,8.11991562,194.85,194.79,2.5708]
[1735642239725,8.11991562,194.85,194.78,8.11991562]
[1735642239928,8.11991562,194.81,194.73,2.94]
[1735642240223,8.11991562,194.79,194.74,12.05656067]
[1735642240423,8.11991562,194.79,194.75,3.93664505]
[1735642240624,8.11991562,194.79,194.73,11.05991562]
[1735642240822,8.11991562,194.79,194.74,3.93790901]
[1735642241025,8.11991562,194.79,194.75,3.93790901]
[1735642241222,8.11991562,194.79,194.73,8.11991562]
[1735642241421,8.11991562,194.79,194.74,3.93813274]
[1735642241627,8.11991562,194.79,194.73,8.11991562]
[1735642241825,8.11991562,194.79,194.74,3.93823994]
[1735642242021,8.11991562,194.79,194.75,3.93822421]
[1735642242226,8.11991562,194.79,194.73,8.11991562]
[1735642242429,8.11991562,194.79,194.78,2.5709]
[1735642242625,8.11991562,194.79,194.71,11.11961562]
[1735642242924,8.11991562,194.75,194.72,3.9361351]
[1735642243234,8.11991562,194.75,194.73,2.5716]
[1735642243425,8.11991562,194.75,194.7,2.10151761]
[1735642243623,8.11991562,194.75,194.71,3.93673429]
[1735642243927,8.11991562,194.75,194.73,2.5715]
[1735642244527,8.11991562,194.75,194.74,2.5715]
[1735642245726,8.11991562,194.77,194.71,8.11991562]
[1735642245926,8.11991562,194.77,194.76,2.5712]
[1735642246424,8.11991562,194.79,194.78,2.5709]
[1735642246630,11.05991562,194.81,194.73,8.11991562]
[1735642246829,11.05991562,194.81,194.74,3.93379193]
[1735642246830,8.11991562,194.81,194.74,3.93379193]
[1735642247030,11.05991562,194.83,194.75,12.05370755]
[1735642247329,8.11991562,194.83,194.76,3.93379193]
[1735642247529,8.11991562,194.83,194.82,2.5704]
[1735642248926,8.11991562,194.83,194.75,8.11991562]
[1735642249131,6.1145,194.86,194.76,3.93537385]
[1735642249132,8.11991562,194.81,194.76,3.93537385]
[1735642249339,8.11991562,194.81,194.75,8.11991562]
[1735642249538,8.11991562,194.81,194.76,3.93609406]
[1735642249737,8.11991562,194.81,194.79,2.5708]
[1735642250233,8.11991562,194.81,194.78,2.5709]
[1735642250438,8.11991562,194.79,194.78,2.5709]
[1735642251332,8.11991562,194.79,194.71,11.05991562]
[1735642251528,8.11991562,194.77,194.72,3.93709254]
[1735642251732,8.11991562,194.77,194.71,8.11991562]
[1735642251930,8.11991562,194.77,194.72,3.93739984]
[1735642252126,8.11991562,194.77,194.71,8.11991562]
[1735642252327,8.11991562,194.77,194.72,3.9375515]
[1735642252536,8.11991562,194.77,194.71,8.11991562]
[1735642252736,8.11991562,194.77,194.72,3.93719086]
[1735642253032,8.11991562,194.77,194.7,2.10151761]
[1735642253230,8.11991562,194.77,194.74,2.5713]
[1735642253439,8.11991562,194.75,194.74,2.5713]
[1735642259644,8.11991562,194.75,194.7,2.10151761]
[1735642259845,8.11991562,194.75,194.71,3.93861709]
[1735642260139,8.11991562,194.77,194.7,2.10151761]
[1735642260345,8.11991562,194.77,194.75,2.5712]
[1735642260736,8.11991562,194.77,194.7,2.10151761]
[1735642260942,8.11991562,194.75,194.73,2.5715]
[1735642261337,8.11991562,194.75,194.7,2.10151761]
[1735642261540,8.11991562,194.75,194.71,3.94040221]
[1735642261741,8.11991562,194.75,194.7,2.10151761]
[1735642261943,8.11991562,194.75,194.71,3.94047548]
[1735642262143,8.11991562,194.75,194.7,2.10151761]
[1735642262445,8.11991562,194.75,194.74,2.5714]
[1735642264647,8.11991562,194.75,194.7,2.10151761]
[1735642264951,8.11991562,194.73,194.7,2.10151761]
[1735642265456,8.11991562,194.73,194.71,2.5718]
[1735642265650,8.11991562,194.73,194.7,2.10151761]
[1735642266651,8.11991562,194.73,194.72,2.5717]
[1735642267641,11.05991562,194.75,194.74,2.5715]
[1735642268951,11.05991562,194.75,194.73,2.5716]
[1735642270145,11.05991562,194.75,194.72,2.5717]
[1735642270654,8.11991562,194.73,194.7,2.10151761]
[1735642270849,8.11991562,194.71,194.7,2.10151761]
[1735642271450,8.11991562,194.71,194.7,4.67351761]
[1735642272954,8.11991562,194.71,194.7,2.10151761]
[1735642273556,8.11991562,194.71,194.69,2.5721]
[1735642275649,8.11991562,194.71,194.7,2.572]
[1735642275950,11.05991562,194.73,194.65,8.11991562]
[1735642276154,8.11991562,194.73,194.66,3.93265276]
[1735642276350,8.11991562,194.73,194.71,2.5718]
[1735642277552,8.11991562,194.75,194.67,8.11991562]
[1735642277753,8.11991562,194.75,194.69,8.11991562]
[1735642278551,8.11991562,194.75,194.74,2.5715]
[1735642280054,2.94,194.77,194.74,2.5715]
[1735642280251,8.11991562,194.76,194.74,2.5715]
[1735642280462,8.11991562,194.76,194.69,8.11991562]
[1735642280760,8.11991562,194.76,194.75,2.5713]
[1735642281359,8.11991562,194.76,194.69,8.11991562]
[1735642281659,8.11991562,194.76,194.74,2.5714]
[1735642282758,8.11991562,194.76,194.75,2.5713]
[1735642294174,8.11991562,194.76,194.74,2.5714]
[1735642294768,8.11991562,194.76,194.75,2.5713]
[1735642295972,8.11991562,194.76,194.73,2.5715]
[1735642296174,8.11991562,194.74,194.73,2.5715]
[1735642296676,8.11991562,194.74,194.72,2.5717]
[1735642296875,8.11991562,194.73,194.72,2.5717]
[1735642297577,8.11991562,194.73,194.65,8.11991562]
[1735642297780,8.11991562,194.71,194.65,8.11991562]
[1735642297983,8.11991562,194.71,194.66,3.94535193]
[1735642298169,8.11991562,194.71,194.67,3.94535193]
[1735642298370,8.11991562,194.71,194.68,3.94535193]
[1735642298570,8.11991562,194.71,194.63,36.27747224]
[1735642298777,8.11991562,194.71,194.69,2.572]
[1735642300080,8.11991562,194.71,194.67,2.5724]
[1735642300280,8.11991562,194.69,194.67,2.5724]
[1735642300877,8.11991562,194.69,194.68,2.5722]
[1735642302481,8.11991562,194.69,194.63,8.11991562]
[1735642303583,8.11991562,194.69,194.67,2.5723]
[1735642303783,8.11991562,194.69,194.61,1.98115458]
[1735642303978,8.11991562,194.66,194.62,3.94892587]
[1735642304181,8.11991562,194.66,194.65,2.5726]
[1735642308188,8.11991562,194.68,194.67,2.5724]
[1735642310181,8.11991562,194.7,194.69,2.572]
[1735642311188,8.11991562,194.72,194.66,2.5725]
[1735642311496,8.11991562,194.74,194.68,8.11991562]
[1735642312491,8.11991562,194.74,194.73,2.5716]
[1735642320397,3.0735,194.8,194.7,8.11991562]
[1735642320598,8.11991562,194.78,194.7,8.11991562]
[1735642320900,8.11991562,194.78,194.71,3.93819041]